Cogmind - Beta 14 @@@ ROGUE MODE // 2024.12.05 @ 19:32:21 Player: ILikeVoltron Result: Self-destructed Performance ------------- Evolutions (1) 500 Regions Visited (2) 400 Robots Destroyed (22) 110 Value Destroyed (351) 351 Prototype IDs (0) 0 Alien Tech Used (0) 0 Bonus (0) 0 TOTAL SCORE: 1361 Bonus ------- None Cogmind --------- Core Integrity 268/400 Matter 171/300 Energy 250/250 System Corruption 14% Temperature Cool (0) Movement Treading (160) Location -9/Materials Parts ------- > --- POWER (1) -------- Ion Engine > --- PROPULSION (3) --- Improved Treads Improved Treads > --- UTILITY (3) ------ Heat Sink Advanced Visual Processing Unit > --- WEAPON (2) ------- Mace > --- INVENTORY (5) ---- Structural Scanner Seismic Detector Light Armor Plating Tractor Beam Beam Rifle Peak State ------------ > --- POWER ------------ Light Ion Engine > --- PROPULSION ------- Improved Treads Improved Treads Improved Treads > --- UTILITY ---------- Small Storage Unit Advanced Visual Processing Unit Improved Terrain Scanner > --- WEAPON ----------- Heavy Assault Rifle Mace > --- INVENTORY -------- Heat Sink Structural Scanner Seismic Detector Light Armor Plating Tractor Beam Beam Rifle Heavy Assault Rifle Rocket Launcher [Rating: 19] Favorites ----------- Power Improved Ion Engine Engine Improved Ion Engine Propulsion Aluminum Leg Treads Improved Treads Leg Aluminum Leg Utility Small Storage Unit Device Seismic Detector Storage Small Storage Unit Processor Advanced Visual Processing Unit Weapon Heavy Assault Rifle Energy Gun Medium Laser Ballistic Gun Heavy Assault Rifle Launcher Rocket Launcher Impact Weapon Mace Slashing Weapon Mining Claw Build | -11 -10 -9 ------- Run | Yrd Mat Mat Slots Evolved 2 | . . 2 Power . | . . . Propulsion 1 | . . 1 Utility 1 | . . 1 Weapon . | . . . Parts Attached 20 | 1 8 11 Power 3 | . 1 2 Engine 3 | . 1 2 Core . | . . . Reactor . | . . . Propulsion 3 | . . 3 Treads 3 | . . 3 Leg . | . . . Wheel . | . . . Hover . | . . . Flight . | . . . Utility 7 | 1 2 4 Device 5 | 1 2 2 Storage . | . . . Processor 2 | . . 2 Hackware . | . . . Protection . | . . . Artifact . | . . . Weapon 7 | . 5 2 Energy Gun . | . . . Energy Cannon . | . . . Ballistic Gun 3 | . 3 . Ballistic Cannon . | . . . Launcher 1 | . . 1 Special Weapon . | . . . Impact Weapon 1 | . . 1 Slashing Weapon 2 | . 2 . Piercing Weapon . | . . . Special Melee Weapon . | . . . Unidentified Prototypes . | . . . Parts Lost 6 | . . 6 Power 2 | . . 2 Propulsion 1 | . . 1 Utility 1 | . . 1 Weapon 2 | . . 2 Highest Loss Streak 2 | . . 2 To Critical Strikes . | . . . Average Slot Usage (%) 93 | . 100 85 Engine 9 | . 14 5 Treads 11 | . . 25 Leg 16 | . 28 3 Device 12 | . 14 9 Storage 12 | . 14 10 Processor 5 | . . 11 Energy Gun 4 | . 8 . Ballistic Gun 12 | . 16 6 Impact Weapon 4 | . . 10 Slashing Weapon 1 | . 3 . Peak Build Rating 19 | 8 11 19 Average Rating 11 | 7 9 14 On Entrance 8 | 6 8 10 Naked Turns . | . . . Heaviest Build 19 | 14 19 18 Greatest Support 69 | 20 20 69 Greatest Overweight (x) . | . . . Average Overweight (x) . | . . . Largest Inventory Capacity 8 | 8 8 8 Average Capacity 7 | 8 8 7 Most Carried 8 | 8 8 8 Average Carried 7 | 7 7 7 Final Capacity 8 | 8 8 5 Final Carried 8 | 8 8 5 Class Distribution -------------------- 100% | Mutant Dominant Class ---------------- Mutant | -10/Materials Mutant | -9/Materials Resources | -11 -10 -9 ----------- Run | Yrd Mat Mat Matter Collected 484 | 229 81 174 Remotely 29 | 29 . . Salvage Created 597 | 128 164 305 Parts 50 | 18 18 14 Haulers Intercepted 1 | . 1 . Recyclers Shooed 1 | . . 1 Parts Field Recycled . | . . . Retrieved Matter . | . . . Parts Self-Destructed . | . . . Prevented . | . . . Kills | -11 -10 -9 ------- Run | Yrd Mat Mat Combat Hostiles Destroyed 13 | . 6 7 Melee 1 | . . 1 Guns 6 | . 6 . AOE 5 | . . 5 Classes Destroyed 8 | 3 3 2 Worker 2 | 1 . 1 Builder 1 | . 1 . Tunneler 3 | 3 . . Hauler 1 | . 1 . Recycler 2 | 1 . 1 Swarmer 7 | . 6 1 Grunt 4 | . . 4 Sentry 2 | . . 2 Best Kill Streak 5 | 2 3 5 Combat Bots Only 4 | . 3 4 Max Kills in Single Turn 2 | 1 1 2 Gunslinging . | . . . Exploded 2 | . . 2 Melee 1 | . . 1 Uniques/NPCs Destroyed . | . . . Combat | -11 -10 -9 -------- Run | Yrd Mat Mat Hostile Shots Fired 83 | . 35 48 Missed 17 | . 5 12 Damage Taken 1350 | . 272 1078 Core 207 | . 75 132 Absorbed by Shields . | . . . Core Remaining (%) 85 | 100 70 . Volleys Fired 43 | 16 16 11 Largest 2 | 2 2 1 Hottest 90 | 90 90 33 Shots Fired 74 | 31 32 11 Gun 63 | 31 32 . Cannon . | . . . Launcher 11 | . . 11 Special . | . . . Kinetic 22 | . 22 . Thermal 41 | 31 10 . Explosive 11 | . . 11 Electromagnetic . | . . . Robot Hit Streak 5 | 5 4 5 Robot Miss Streak 4 | 4 4 3 Penetration Max . | . . . Secondary Targets 1 | . 1 . Max Gunslinging Chain 1 | . 1 . Shots Hit Robots 41 | 14 14 13 Core Hits 29 | 6 8 15 Critical Kills . | . . . Critical Parts Destroyed . | . . . Critical Strikes . | . . . Melee Attacks 32 | . 2 30 Impact 30 | . . 30 Slashing 2 | . 2 . Piercing . | . . . Sneak Attacks 1 | . . 1 Combat Hostiles . | . . . Follow-up Attacks . | . . . Damage Inflicted 1139 | 168 194 777 Guns 362 | 168 194 . Cannons . | . . . Explosions 579 | . . 579 Melee 198 | . . 198 Ramming . | . . . Kinetic 149 | . 149 . Thermal 213 | 168 45 . Explosive 579 | . . 579 Electromagnetic . | . . . Impact 198 | . . 198 Slashing . | . . . Piercing . | . . . Highest Corruption 14 | . . 14 Average Corruption 9 | . . 9 Corruption Purged . | . . . Corruption Blocked . | . . . Effects 12 | . . 12 Message Errors 1 | . . 1 Matter Fused 4 | . . 4 Heat Flow Errors 1 | . . 1 Energy Discharges 2 | . . 2 Data Loss (minor) 2 | . . 2 Data Loss (major) 1 | . . 1 Alerts 1 | . . 1 Overload Shots . | . . . Overflow Damage 7 | . . 7 Projectiles . | . . . Explosions . | . . . Melee 7 | . . 7 Knockbacks . | . . . Impact . | . . . Kinetic . | . . . Secondary . | . . . Self-Inflicted Damage 96 | . . 96 Shots 3 | . . 3 Rammed . | . . . Targets Rammed . | . . . Kicked . | . . . Crushed . | . . . Highest Temperature 196 | 150 90 196 Average Temperature 56 | 56 40 91 Received Heat Transfer 147 | . . 147 Siege Activations . | . . . Robots Corrupted 1 | . . 1 Combat Hostiles 1 | . . 1 Parts Fried 2 | . . 2 Impact Corruptions 1 | . . 1 Robots Melted . | . . . Combat Hostiles . | . . . Parts Melted 1 | . 1 . Heat Transferred 558 | 434 124 . Parts Sabotaged . | . . . Parts Stolen . | . . . Parts Stripped . | . . . Power Chain Reactions . | . . . Alert | -11 -10 -9 ------- Run | Yrd Mat Mat Peak Influence 165 | 25 145 165 Initial 38 | . 16 38 Average 83 | 9 91 94 Maximum Alert Level . | . . . Low Security (%) 100 | 100 100 100 Level 1 . | . . . Level 2 . | . . . Level 3 . | . . . Level 4 . | . . . Level 5 . | . . . High Security . | . . . Max Security . | . . . Squads Dispatched 1 | . . 1 Investigation . | . . . Extermination . | . . . Reinforcement 1 | . . 1 Assault . | . . . Garrison . | . . . Intercept . | . . . Searches Triggered . | . . . Construction Impeded . | . . . Haulers Reinforced . | . . . Active Scanning Responses . | . . . Cargo Convoy Interrupts . | . . . Stealth | -11 -10 -9 --------- Run | Yrd Mat Mat Distress Signals 2 | . . 2 Communications Jammed . | . . . Distress Signals . | . . . Times Spotted 22 | . 10 12 Peak Tracking Total 4 | . 3 4 Tactical Retreats 2 | . 1 1 Traps | -11 -10 -9 ------- Run | Yrd Mat Mat Traps Triggered 1 | . 1 . Indirectly . | . . . Trap Hack Attempts . | . . . Triggered . | . . . Disarmed . | . . . Reprogrammed . | . . . Reused . | . . . Traps Extracted . | . . . Installed . | . . . Triggered . | . . . Machines | -11 -10 -9 ---------- Run | Yrd Mat Mat Machines Disabled . | . . . Max in Single Turn . | . . . Machines Repaired . | . . . Machines Dismantled . | . . . Machines Sabotaged . | . . . Overloaded Fab Kills . | . . . Hacking | -11 -10 -9 --------- Run | Yrd Mat Mat Machines Accessed 7 | . 6 1 Terminals 5 | . 4 1 Fabricators . | . . . Repair Stations 1 | . 1 . Recycling Units 1 | . 1 . Scanalyzers . | . . . Garrison Access . | . . . Total Hacks 17 | . 14 3 Successful 11 | . 10 1 Failed 6 | . 4 2 Catastrophic 1 | . 1 . Database Lockouts . | . . . Manual 2 | . 2 . Terminals 15 | . 12 3 Fabricators . | . . . Repair Stations 1 | . 1 . Recycling Units 1 | . 1 . Scanalyzers . | . . . Garrison Access . | . . . Terminal Hacks 8 | . 7 1 Branch Access Points 1 | . 1 . Emergency Access Points 2 | . 2 . Alert Level 1 | . 1 . Locate Traps 2 | . 2 . Zone Layout 2 | . 1 1 Fabricator Hacks . | . . . Repair Station Hacks . | . . . Recycling Unit Hacks 1 | . 1 . Report Inventory 1 | . 1 . Scanalyzer . | . . . Garrison Access Hacks . | . . . Unauthorized Hacks 2 | . 2 . Terminals 2 | . 2 . Skim 2 | . 2 . Fabricators . | . . . Repair Stations . | . . . Recycling Units . | . . . Scanalyzers . | . . . Garrison Access . | . . . Data Cores Recovered . | . . . Used . | . . . Hacking Detections 4 | . 3 1 Full Trace Events . | . . . Feedback Events . | . . . Feedback Blocked . | . . . Robot Schematics Acquired . | . . . Robots Built . | . . . Authchips . | . . . Time . | . . . Total Robot Build Rating . | . . . Part Schematics Acquired . | . . . Parts Built . | . . . Authchips . | . . . Time . | . . . Total Part Build Rating . | . . . Parts Repaired . | . . . Time . | . . . Parts Recycled . | . . . Recycled Matter . | . . . Retrieved Matter . | . . . Retrieved Components . | . . . Parts Scanalyzed . | . . . Part Schematics Acquired . | . . . Parts Damaged . | . . . Bothacking | -11 -10 -9 ------------ Run | Yrd Mat Mat Used RIF Installer . | . . . Robots Hacked . | . . . Non-combat . | . . . Combat . | . . . Robot Hacks Applied . | . . . Relay Couplers Released . | . . . Fabnet Peak Effective % . | . . . Robots Rewired . | . . . Allies Hacked . | . . . Hacks Repelled . | . . . Allies | -11 -10 -9 -------- Run | Yrd Mat Mat Total Allies . | . . . Largest Group . | . . . Highest-Rated Group . | . . . Highest-Rated Ally . | . . . Total Orders . | . . . Ally Attacks . | . . . Total Damage . | . . . Kills . | . . . Allies Corrupted . | . . . Allies Melted . | . . . Intel | -11 -10 -9 ------- Run | Yrd Mat Mat Robot Analysis Total . | . . . Derelict Logs Recovered . | . . . Drone Launches . | . . . Drone Recoveries . | . . . Exploration | -11 -10 -9 ------------- Run | Yrd Mat Mat Turns Passed 1167 | 137 549 481 Spaces Moved 660 | 58 371 231 Core . | . . . Treads 177 | . . 177 Legs 483 | 58 371 54 Wheels . | . . . Hover . | . . . Flight . | . . . Fastest Speed 120 | 120 120 120 Average Speed 130 | 120 120 150 Slowest Speed 160 | 120 120 160 Overloaded Moves . | . . . Propulsion Burnouts . | . . . Robots Hopped . | . . . Cave-ins Triggered 2 | . . 2 Exploration Rate (%) 30 | 4 65 21 Regions Visited 2 Branch Regions . Pre-discovered Areas . | . . . Known Exits Taken . | . . . Unknown Exits Taken 2 | 1 1 . Scrap Searched . | . . . Spaces Dug 18 | . 2 16 Terrain Destroyed 104 | . 2 102 Melee 18 | . 2 16 Projectile . | . . . AOE 86 | . . 86 Terrain Rammed . | . . . Walls Destroyed . | . . . Machines Disabled . | . . . Actions | -11 -10 -9 --------- Run | Yrd Mat Mat Total 832 | 95 440 297 Wait 52 | 15 31 6 Move 658 | 57 370 231 Hop . | . . . Pick Up 13 | 4 5 4 Fast Attach 7 | 1 1 5 Attach 1 | . . 1 Detach 1 | . 1 . Swap 12 | . 7 5 Drop 13 | 2 7 4 Fire 43 | 16 16 11 Melee 32 | . 2 30 Ram . | . . . Kick . | . . . Crush . | . . . Escape Stasis . | . . . Rewire . | . . . Trap . | . . . Miscellaneous . | . . . Route ------- -11/Scrapyard -10/Materials (discovered 3 exits: *Mat x2 / Min) -9/Materials History --------- Turn | Location | Event 1 | -11/Scrapyard | Discovered new exit (range 3) 138 | -11/Scrapyard | Entered Materials 317 | -10/Materials | Build established: Mutant 360 | -10/Materials | Discovered new exit (range 15) 427 | -10/Materials | Discovered new exit (range 9) 429 | -10/Materials | Identified exit to Mines 687 | -10/Materials | Entered another Materials area 687 | -9/Materials | Evolved 2 slots: Propulsion x1, Utility x1 839 | -9/Materials | Crushed by falling debris 976 | -9/Materials | Crushed by falling debris 976 | -9/Materials | System corruption reached 10% 1168 | -9/Materials | Self-destructed Last Messages --------------- 01131_ K-01 Serf collects debris. 01132_ System corrupted: Matter fused (-8). 01134_ The unstable cave ceiling collapses. 01136_ Acquired 5 matter. 01138_ The unstable cave ceiling collapses. 01138_ S-10 Pest destroyed. 01139_ Acquired Ion Engine. 01144_ Rocket Launcher destroyed. 01148_ R-06 Scavenger collects Flight Unit. 01149_ System corrupted: Matter fused (-9). 01149_ The unstable cave ceiling collapses. 01149_ K-01 Serf collects debris. 01151_ U-05 Engineer builds a Wall. 01159_ Destroyed Flight Unit. 01159_ S-10 Pest system corrupted by crushing effect. 01160_ S-10 Pest system terminally corrupted. 01160_ Lgt. Ion Engine fried. 01160_ Lgt. Assault Rifle fried. 01164_ System corrupted: IFF burst signal emitted. 01166_ K-01 Serf collects debris. Map ----- +----------------------------------------------------+ | ?????????????????????????????????????????????????? | | ?????????????????????????????????????????????????? | | ?????????????????????????????????????????????????? | | ?????????????????????????????????????????????????? | | ?????????????????????????????????????????????????? | | ?????????????????????????????????????????????????? | | ?????????????????????????????????????????????????? | | ?????????????????????????????????????????????????? | | ?????????????????????????????????????????????????? | | ?????????????????????????????????????????????????? | | ??????????????????????????######??????#??????????? | | ?????????????????????????? ] ????? ######?????? | | ?????????????????????????""" #???? #?????? | | ???????????????????????# """ +???? #?????? | | ???????????????????????? """ #???? #?????? | | ????????????????????????? ! #???? #?????? | | ??????????????????????????"" #???# #?????? | | ???????????????????????????" #??? ####??? | | ???????????????????????????? #??? % #??? | | ????????????????????????????? #### = # #??? | | ????????????????#?????????????# %* # #?## | | ????????????????# ??????????### # % #?# | | ?????????????????? ????????# # # ### | | ????????????????####+######?# a | | ????????????????# w ###] r k ### | | ????????????????# ! @/Y[ # #?# | | ????????????????# / ### # #% """ #?## | | ????????????????# #?### ##### "Y" ##?# | | ????????????????###;#######???# ## #??? | | ??????????????????#???????????# ## #??? | | ??????????????????????????????#""" # ##?? | | ??????????????????????????????#""" #??# | | ??????????????????????????????#""" # [ ! #### | | ??????????????????????????????# [!] "# | | ??????????????????????????????# [! #### | | ??????????????????????????????###### # ######??? | | ??????????????????????????????????# ## #?????? | | ??????????????????????????????????## #?#???? | | ???????????????????????????????????#########?????? | | ????????????????????????????????????????#?????#??? | | ?????????????????????????????????????????#???????? | | ?????????????????????????????????????????????????? | | ?????????????????????????????????????????????????? | | | | | | | | | | | | | | | +----------------------------------------------------+ Best States ------------- Heat Dissipation 38 Energy Generation 12 Energy Capacity 265 Matter Stores 300 Matter Capacity 300 Sight Range 20 Terrain Scan Range 16 Terrain Scan Density 10 Evasion (%) 55 Recoil Reduction 3 Item Schematics ----------------- None Robot Schematics ------------------ None Fabricated ------------ Nothing Alien Tech Used ----------------- None Achievements -------------- None Challenges ------------ None Game ------ Seed CannonAntimatterThruster Manual? 0 Play Time 00:15:11 Cumulative 186.1 hours Start 2024.12.01 @ 12:38:00 End 2024.12.05 @ 19:32:21 Sessions 3 Manual Loads 0 Difficulty Rogue Special Mode None Game No. 335 Rogue 331 Adventurer 0 Explorer 4 Win Type - Total 0 Types 0/0/0/0/0/0/0/0/0 Lore% 21 Gallery% 47 Achievement% 35 Wizard Run 0 Options --------- Layout 1 ASCII 0 Keyboard 1 Movement Arrows Keybinds 0 Fullscreen 1 Font 32/SmallcapsGlow Map View 130x35 Zoom Use 0% Tactical HUD 1 Map Filters NONE Filters NONE Steam 0 RUN: 779b8c88-31ac-48d4-8e2a-472d3469d0f4